bitfinex-derivatives/quotes_BTCF0:USTF0_20210706
["timestamp","ask_amount","ask_price","bid_price","bid_amount"]
[1625556888085,0.34104187,34743.0,34742.0,2.88974247]
[1625556888286,0.34104187,34743.0,34742.0,2.94874247]
[1625556888637,0.34104187,34743.0,34742.0,3.42989335]
[1625556888888,0.001,34743.0,34742.0,3.42989335]
[1625556891589,0.001,34743.0,34742.0,2.23999939]
[1625556897103,0.001,34743.0,34742.0,1.22009028]
[1625556897402,0.33827708,34746.0,34742.0,1.22009028]
[1625556897502,0.39727708,34746.0,34742.0,1.22009028]
[1625556897702,0.059,34746.0,34742.0,2.2375936]
[1625556898156,0.059,34746.0,34744.0,0.67833377]
[1625556898303,0.059,34746.0,34744.0,1.02364377]
[1625556898654,0.059,34746.0,34745.0,0.39815007]
[1625556898954,0.059,34746.0,34745.0,0.63872551]
[1625556899107,0.059,34746.0,34745.0,5.64632551]
[1625556900662,0.059,34746.0,34745.0,5.30717544]
[1625556901560,0.059,34746.0,34745.0,5.24817544]
[1625556901761,0.059,34746.0,34745.0,5.58724716]
[1625556902113,0.059,34746.0,34745.0,5.24817544]
[1625556905117,0.059,34746.0,34745.0,5.0076]
[1625556905670,0.059,34746.0,34745.0,5.72932632]
[1625556908422,0.059,34746.0,34745.0,5.73274333]
[1625556909979,0.31021,34746.0,34745.0,5.73274333]
[1625556910429,0.32576903,34746.0,34745.0,5.73274333]
[1625556911080,0.66354948,34746.0,34745.0,5.73274333]
[1625556912084,1.24153685,34746.0,34745.0,5.73274333]
[1625556912284,1.24153685,34746.0,34745.0,5.72932632]
[1625556912604,1.24153685,34746.0,34745.0,5.73274355]
[1625556913837,2.2541353,34746.0,34745.0,5.73274355]
[1625556914137,2.2541353,34746.0,34745.0,5.72932632]
[1625556914689,3.43522223,34746.0,34745.0,5.72932632]
[1625556919554,2.2541353,34746.0,34745.0,5.72932632]
[1625556920897,2.2541353,34746.0,34745.0,5.73274352]
[1625556921450,1.24153685,34746.0,34745.0,5.73274352]
[1625556922202,2.25633614,34746.0,34745.0,5.73274352]
[1625556923355,2.25633614,34746.0,34745.0,5.72932632]
[1625556923563,3.44063594,34746.0,34745.0,5.72932632]
[1625556923655,3.44063594,34746.0,34745.0,5.73274362]
[1625556924905,3.44063594,34746.0,34745.0,5.72932632]
[1625556925204,3.44063594,34746.0,34745.0,5.73274361]
[1625556926304,3.44063594,34746.0,34745.0,5.72932632]
[1625556926856,3.44063594,34746.0,34745.0,5.73274362]
[1625556928006,4.79835634,34746.0,34745.0,5.73274362]
[1625556933364,4.79835634,34746.0,34745.0,6.07301269]
[1625556933668,4.79835634,34746.0,34745.0,5.73274362]
[1625556934119,4.79835634,34746.0,34745.0,6.07325737]
[1625556934317,4.4987809,34746.0,34745.0,6.07325737]
[1625556934469,4.4987809,34746.0,34745.0,6.41374932]
[1625556934922,4.4987809,34746.0,34745.0,8.62911275]
[1625556935270,3.1410605,34746.0,34745.0,8.62911275]
[1625556935620,3.1410605,34746.0,34745.0,9.9923868]
[1625556937672,3.2000605,34746.0,34745.0,9.9923868]
[1625556939127,3.1410605,34746.0,34745.0,9.9923868]
[1625556941734,3.2000605,34746.0,34745.0,9.9923868]
[1625556942940,4.56387513,34746.0,34745.0,9.9923868]
[1625556948751,4.56387513,34746.0,34745.0,9.27066048]
[1625556948852,3.2000605,34746.0,34745.0,9.27066048]
[1625556949353,3.2000605,34746.0,34745.0,9.9923868]
[1625556952713,4.56302843,34746.0,34745.0,4.9847868]
[1625556952914,4.56302843,34746.0,34745.0,4.50363592]
[1625556953364,9.68142843,34746.0,34745.0,4.50363592]
[1625556953464,9.92200387,34746.0,34745.0,4.50363592]
[1625556953567,9.92200387,34746.0,34745.0,4.50021862]
[1625556954019,9.98100387,34746.0,34745.0,4.50021862]
[1625556954322,11.5124732,34746.0,34745.0,1.94405657]
[1625556954770,11.5124732,34746.0,34745.0,0.92158114]
[1625556956273,6.3940732,34746.0,34745.0,0.92158114]
[1625556956626,6.3940732,34746.0,34745.0,0.58166431]
[1625556956773,6.3940732,34746.0,34745.0,5.21206431]
[1625556956974,6.09449776,34746.0,34745.0,5.21206431]
[1625556957224,6.09449776,34746.0,34745.0,5.55312093]
[1625556957324,6.09449776,34746.0,34745.0,5.55653813]
[1625556957424,6.03549776,34746.0,34745.0,6.00782357]
[1625556957626,4.50402843,34746.0,34745.0,8.22470542]
[1625556957977,4.50402843,34746.0,34745.0,9.58889537]
[1625556958525,4.56302843,34746.0,34745.0,9.58889537]
[1625556960538,4.56302843,34746.0,34745.0,8.22470542]
[1625556963488,6.09645257,34746.0,34745.0,7.03099981]
[1625556963589,6.09645257,34746.0,34745.0,6.82028981]
[1625556964242,6.09645257,34746.0,34745.0,6.81687261]
[1625556964692,6.09645257,34746.0,34745.0,6.82028983]
[1625556965242,6.09645257,34746.0,34745.0,6.81687261]
[1625556967048,6.60661737,34746.0,34745.0,7.32848576]
[1625556969053,6.60661737,34746.0,34745.0,2.69808576]
[1625556969503,6.66561737,34746.0,34745.0,2.69808576]
[1625556972257,6.66561737,34746.0,34745.0,2.70150298]
[1625556972709,5.13219323,34746.0,34745.0,2.70150298]
[1625556973361,6.66233445,34746.0,34745.0,2.70150298]
[1625556974566,5.13219323,34746.0,34745.0,2.70150298]
[1625556974920,5.13219323,34746.0,34745.0,3.89533056]
[1625556975220,5.13219323,34746.0,34745.0,4.15153056]
[1625556975622,5.07319323,34746.0,34745.0,4.15153056]
[1625556976175,5.01419323,34746.0,34745.0,4.15153056]
[1625556976574,5.07319323,34746.0,34745.0,4.15153056]
[1625556978524,5.13219323,34746.0,34745.0,3.89533056]
[1625556978624,5.07319323,34746.0,34745.0,3.89533056]
[1625556979528,5.13219323,34746.0,34745.0,3.89533056]
[1625556979828,5.07319323,34746.0,34745.0,3.89533056]
[1625556980027,5.01419323,34746.0,34745.0,3.89533056]
[1625556980129,5.01419323,34746.0,34745.0,4.11244056]
[1625556980234,4.76298323,34746.0,34745.0,4.17144056]
[1625556980328,4.74168323,34746.0,34745.0,4.23044056]
[1625556980427,4.74168323,34746.0,34745.0,4.17144056]
[1625556980526,4.63868323,34746.0,34745.0,4.17144056]
[1625556980626,4.52948323,34746.0,34745.0,4.23044056]
[1625556980726,4.52948323,34746.0,34745.0,4.17144056]
[1625556980896,0.85147108,34746.0,34745.0,7.06960249]
[1625556981277,0.42967108,34746.0,34745.0,7.06960249]
[1625556981427,0.0883648,34746.0,34745.0,7.06960249]
[1625556981527,0.0883648,34746.0,34745.0,7.31017793]
[1625556981977,0.34127464,34747.0,34745.0,7.31017793]
[1625556982427,0.34127464,34747.0,34746.0,5.11243176]
[1625556982528,0.34127464,34747.0,34746.0,5.17484836]
[1625556982729,0.34127464,34747.0,34746.0,5.11584836]
[1625556983082,0.34127464,34747.0,34746.0,5.20224836]
[1625556985785,0.34127464,34747.0,34746.0,5.11584836]
[1625556986186,1.66526714,34749.0,34746.0,5.11584836]
[1625556986486,1.83447922,34749.0,34748.0,3.57841845]
[1625556986736,1.83447922,34749.0,34748.0,3.58183517]
[1625556986836,2.85678768,34749.0,34748.0,3.58183517]
[1625556987287,1.66409277,34749.0,34748.0,3.58183517]
[1625556987489,1.66409277,34749.0,34748.0,3.82241061]
[1625556987787,1.78209277,34749.0,34748.0,3.82241061]
[1625556988195,2.97424936,34749.0,34748.0,3.82241061]
[1625556988741,2.97424936,34749.0,34748.0,2.45920358]
[1625556990915,2.85624936,34749.0,34748.0,2.45920358]
[1625556991009,2.85624936,34749.0,34748.0,2.70135358]
[1625556991399,2.85624936,34749.0,34748.0,4.06323283]
[1625556991400,1.66409277,34749.0,34748.0,4.06323283]
[1625556992301,0.64178431,34749.0,34748.0,4.06323283]
[1625556993656,1.66421894,34749.0,34748.0,4.06323283]
[1625556994207,1.72321894,34749.0,34748.0,4.06323283]
[1625556994656,1.66421894,34749.0,34748.0,4.06323283]
[1625556994908,1.72321894,34749.0,34748.0,4.06323283]
[1625556995858,1.66421894,34749.0,34748.0,4.06323283]
[1625556996059,0.64178431,34749.0,34748.0,4.06323283]
[1625556998465,0.70078431,34749.0,34748.0,4.06323283]
[1625557001422,1.72263604,34749.0,34748.0,4.06323283]
[1625557001519,0.70078431,34749.0,34748.0,4.06323283]
[1625557004983,1.72249121,34749.0,34748.0,4.06323283]
[1625557006388,1.99582121,34749.0,34748.0,3.82108283]
[1625557006587,2.01121088,34749.0,34748.0,3.82108283]
[1625557006889,6.76621088,34749.0,34748.0,3.82108283]
[1625557006992,9.31723065,34749.0,34748.0,0.24399216]
[1625557007740,9.30184098,34749.0,34748.0,0.24057544]
[1625557007991,9.3172311,34749.0,34748.0,0.24057544]
[1625557008242,9.3172311,34749.0,34748.0,0.24399232]
[1625557008545,9.3172311,34749.0,34748.0,0.24057544]
[1625557009398,9.3172311,34749.0,34748.0,0.58111541]
[1625557010498,4.5622311,34749.0,34748.0,0.58453235]
[1625557010752,4.5622311,34749.0,34748.0,0.24399238]
[1625557011203,4.5622311,34749.0,34748.0,1.26555574]
[1625557011654,3.20169856,34749.0,34748.0,1.26555574]
[1625557012457,2.98736856,34749.0,34748.0,1.26555574]
[1625557012558,2.98736856,34749.0,34748.0,2.45734175]
[1625557012758,2.98736856,34749.0,34748.0,1.26555574]
[1625557013160,2.98736856,34749.0,34748.0,5.17355574]
[1625557013660,2.98736856,34749.0,34748.0,6.36533524]
[1625557015412,2.92836856,34749.0,34748.0,6.36533524]
[1625557016462,2.91297844,34749.0,34748.0,6.3619183]
[1625557016714,2.98736772,34749.0,34748.0,6.36533495]
[1625557022623,2.97197844,34749.0,34748.0,6.36533495]
[1625557022723,2.91297844,34749.0,34748.0,6.58651495]
[1625557022875,1.66349121,34749.0,34748.0,7.94885473]
[1625557023024,1.72249121,34749.0,34748.0,7.94885473]
[1625557025887,0.70078431,34749.0,34748.0,7.94885473]
[1625557029996,0.96863431,34749.0,34748.0,7.72767473]
[1625557030699,1.99086235,34749.0,34748.0,7.72767473]
[1625557033004,1.34907804,34749.0,34748.0,7.72767473]
[1625557033357,1.34907804,34749.0,34748.0,7.21447656]
[1625557033757,1.58965348,34749.0,34748.0,7.21447656]
[1625557035061,2.78270418,34749.0,34748.0,7.21447656]
[1625557035908,2.79814799,34749.0,34748.0,7.21447656]
[1625557036208,2.78270418,34749.0,34748.0,7.21447656]
[1625557036409,2.79814795,34749.0,34748.0,7.21447656]
[1625557040566,2.85714795,34749.0,34748.0,7.21447656]
[1625557041015,3.53943125,34749.0,34748.0,7.89522263]
[1625557041468,4.90382795,34749.0,34748.0,7.89522263]
[1625557042220,4.90382795,34749.0,34748.0,3.98722263]
[1625557043172,4.90382795,34749.0,34748.0,2.62488285]
[1625557043472,4.90382795,34749.0,34748.0,1.43310335]
[1625557043822,5.14440339,34749.0,34748.0,1.43310335]
[1625557043922,6.67930232,34749.0,34748.0,1.43310335]
[1625557044976,6.67930232,34749.0,34748.0,1.4296867]
[1625557045076,6.67930232,34749.0,34748.0,0.68074607]
[1625557054548,6.67930232,34749.0,34748.0,5.57584607]
[1625557054747,5.14440339,34749.0,34748.0,5.57584607]
[1625557061719,6.67835793,34749.0,34748.0,5.57584607]
[1625557062320,5.14440339,34749.0,34748.0,5.57584607]
[1625557063320,6.67836351,34749.0,34748.0,5.57584607]
[1625557065628,5.14440339,34749.0,34748.0,5.57584607]
[1625557066127,6.67760098,34749.0,34748.0,5.57584607]
[1625557067383,6.67760098,34749.0,34748.0,5.57926283]
[1625557067634,5.14440339,34749.0,34748.0,5.57926283]
[1625557068034,6.67762578,34749.0,34748.0,5.57926283]
[1625557068284,5.14440339,34749.0,34748.0,5.57926283]
[1625557068436,5.14440339,34749.0,34748.0,5.57584607]
[1625557069236,5.14440339,34749.0,34748.0,5.57926283]
[1625557070739,5.14440339,34749.0,34748.0,6.6018254]
[1625557071891,5.654972,34749.0,34748.0,7.11310664]
[1625557073448,7.18597771,34749.0,34748.0,6.09054407]
[1625557081670,5.654972,34749.0,34748.0,6.09054407]
[1625557083121,7.18550546,34749.0,34748.0,6.09054407]
[1625557084073,5.654972,34749.0,34748.0,6.09054407]
[1625557085478,7.18568786,34749.0,34748.0,6.09054407]
[1625557085928,5.654972,34749.0,34748.0,6.09054407]
[1625557087633,7.18233327,34749.0,34748.0,6.09054407]
[1625557087983,5.654972,34749.0,34748.0,7.1132442]
[1625557088683,10.044672,34749.0,34748.0,7.1132442]
[1625557089035,11.5724957,34749.0,34748.0,7.1132442]
[1625557091543,10.044672,34749.0,34748.0,7.1132442]
[1625557092293,5.654972,34749.0,34748.0,7.1132442]
[1625557092597,5.17382112,34749.0,34748.0,7.1132442]
[1625557092697,5.17382112,34749.0,34748.0,8.52231675]
[1625557092797,5.11482112,34749.0,34748.0,8.52231675]
[1625557093196,5.11482112,34749.0,34748.0,9.88653697]
[1625557093496,5.17382112,34749.0,34748.0,9.88653697]
[1625557093597,5.11482112,34749.0,34748.0,9.88653697]
[1625557093798,3.75042442,34749.0,34748.0,9.88653697]
[1625557094248,3.75042442,34749.0,34748.0,10.12711241]
[1625557094249,3.80942442,34749.0,34748.0,10.12711241]
[1625557094349,3.75042442,34749.0,34748.0,10.12711241]
[1625557094598,3.80942442,34749.0,34748.0,10.12711241]
[1625557096603,5.16970152,34749.0,34748.0,10.12711241]
[1625557097103,5.16970152,34749.0,34748.0,9.91177241]
[1625557097955,5.16970152,34749.0,34748.0,8.54755219]
[1625557101571,5.16970152,34749.0,34748.0,8.54413543]
[1625557102820,5.16970152,34749.0,34748.0,8.54755197]
[1625557104476,5.16970152,34749.0,34748.0,9.91256503]
[1625557106129,5.16970152,34749.0,34748.0,8.54755197]
[1625557115953,5.16970152,34749.0,34748.0,9.91252263]
[1625557125577,5.15425775,34749.0,34748.0,9.90910609]
[1625557125879,5.17001127,34749.0,34748.0,9.91252252]
[1625557126329,5.17001127,34749.0,34748.0,8.54755186]
[1625557126630,5.17001127,34749.0,34748.0,3.65245186]
[1625557127131,5.17001127,34749.0,34748.0,5.01735598]
[1625557127232,9.47021127,34749.0,34748.0,5.01735598]
[1625557128035,5.17001127,34749.0,34748.0,5.01735598]
[1625557132293,5.17001127,34749.0,34748.0,3.65245186]
[1625557132795,5.17001127,34749.0,34748.0,3.41187642]
[1625557133096,6.69997663,34749.0,34748.0,3.41187642]
[1625557133304,11.46077663,34749.0,34748.0,3.41187642]
[1625557133747,11.46077663,34749.0,34748.0,2.21814387]
[1625557133845,11.46077663,34749.0,34748.0,2.21472744]
[1625557134497,11.70135207,34749.0,34748.0,2.21472744]
[1625557135149,11.73551906,34749.0,34748.0,2.21472744]
[1625557135450,11.70135207,34749.0,34748.0,2.21472744]
[1625557140159,11.70135207,34749.0,34748.0,1.19202731]
[1625557141818,11.70135207,34749.0,34748.0,2.21569364]
[1625557143874,11.70135207,34749.0,34748.0,1.19202731]
[1625557149586,11.70135207,34749.0,34748.0,2.21549933]
[1625557150987,11.70135207,34749.0,34748.0,1.19202731]
[1625557158453,11.73552166,34749.0,34748.0,1.19202731]
[1625557158808,11.73552166,34749.0,34748.0,0.51128124]
[1625557160959,11.73552166,34749.0,34748.0,0.85242906]
[1625557161312,11.73552166,34749.0,34748.0,0.51128124]
[1625557161660,11.73552166,34749.0,34748.0,0.85242986]
[1625557163363,6.97472166,34749.0,34748.0,0.85242986]
[1625557164067,11.17292166,34749.0,34748.0,0.85242986]
[1625557164218,11.17292166,34749.0,34748.0,0.51170534]
[1625557165170,11.17292166,34749.0,34748.0,0.85281823]
[1625557166675,11.17292166,34749.0,34748.0,0.5117017]
[1625557167075,11.17292166,34749.0,34748.0,0.34114862]
[1625557168029,11.17292166,34749.0,34748.0,0.51170153]
[1625557168430,11.17292166,34749.0,34748.0,0.85279638]
[1625557170033,11.17292166,34749.0,34748.0,0.34114862]
[1625557170486,11.17292166,34749.0,34748.0,0.51169555]
[1625557175844,6.97472166,34749.0,34748.0,0.51169555]
[1625557176545,6.97472166,34749.0,34748.0,4.30719555]
[1625557177847,6.97472166,34749.0,34748.0,4.39247377]
[1625557178297,6.97472166,34749.0,34748.0,4.30719555]
[1625557179999,6.97472166,34749.0,34748.0,0.51169555]
[1625557180352,6.97472166,34749.0,34748.0,0.25583649]
[1625557181051,6.97472166,34749.0,34748.0,0.17054693]
[1625557181151,6.97472166,34749.0,34747.0,0.93809587]
[1625557181152,6.97472166,34749.0,34747.0,0.25587281]
[1625557181453,0.04994102,34748.0,34747.0,0.25587281]
[1625557181552,4.92490776,34748.0,34747.0,0.25587281]
[1625557181653,6.45382966,34748.0,34747.0,0.25587281]
[1625557182104,6.45382966,34748.0,34747.0,0.08529094]
[1625557182755,6.6944051,34748.0,34747.0,0.08529094]
[1625557183106,6.6944051,34748.0,34747.0,0.25587832]
[1625557185462,6.6944051,34748.0,34747.0,0.08529094]
[1625557186219,6.6944051,34748.0,34746.0,0.59804835]
[1625557186514,0.04994128,34747.0,34746.0,0.59804835]
[1625557186614,0.16794128,34747.0,34746.0,0.59804835]
[1625557186863,6.45567427,34747.0,34746.0,0.59804835]
[1625557190674,6.45567427,34747.0,34746.0,0.51275719]
[1625557192830,6.45567427,34747.0,34746.0,0.85409558]
[1625557195238,6.45567427,34747.0,34746.0,0.85309558]
[1625557200349,6.45567427,34747.0,34746.0,0.51193184]
[1625557201605,6.45567427,34747.0,34746.0,0.85320432]
[1625557203757,6.45567427,34747.0,34746.0,0.34127248]
[1625557204208,6.45567427,34747.0,34746.0,0.85319018]
[1625557205308,6.45567427,34747.0,34746.0,0.5119177]
[1625557207209,6.66767427,34747.0,34746.0,0.5119177]
[1625557210972,6.66767427,34747.0,34746.0,1.19451078]
[1625557219743,6.45567427,34747.0,34746.0,1.50214078]
[1625557219941,6.39667427,34747.0,34746.0,1.50214078]
[1625557220043,6.36250147,34747.0,34746.0,1.50555743]
[1625557220247,6.36250147,34747.0,34746.0,3.72433319]
[1625557220342,6.3966676,34747.0,34746.0,3.72433319]
[1625557220595,6.36250147,34747.0,34746.0,3.72433319]
[1625557220695,6.42150147,34747.0,34746.0,3.72433319]
[1625557220893,4.89213097,34747.0,34746.0,3.72433319]
[1625557220994,4.89213097,34747.0,34746.0,3.96490863]
[1625557221193,4.89213097,34747.0,34746.0,3.96149198]
[1625557221647,4.89213097,34747.0,34746.0,3.96490858]
[1625557222198,4.89213097,34747.0,34746.0,3.96149198]
[1625557232622,4.89213097,34747.0,34746.0,3.65386198]
[1625557233275,4.89213097,34747.0,34746.0,1.43508622]
[1625557233276,6.42494074,34747.0,34746.0,1.43508622]
[1625557233976,6.45911005,34747.0,34746.0,1.43508622]
[1625557234180,6.45911005,34747.0,34746.0,1.09363281]
[1625557235329,6.45911005,34747.0,34746.0,0.75228645]
[1625557236080,6.42494074,34747.0,34746.0,0.75228645]
[1625557236333,6.42494074,34747.0,34746.0,1.43453876]
[1625557241046,1.66657825,34747.0,34746.0,0.24057544]
[1625557241500,6.43588454,34747.0,34746.0,1.43452239]
[1625557243099,6.47005152,34747.0,34746.0,0.75226699]
[1625557245857,6.43588454,34747.0,34746.0,0.75226699]
[1625557246261,6.43588454,34747.0,34746.0,1.43453417]
[1625557251472,6.47005159,34747.0,34746.0,1.43453417]
[1625557252072,6.43588454,34747.0,34746.0,1.43453417]
[1625557252475,6.68087454,34747.0,34746.0,1.43453417]
[1625557252624,6.71504158,34747.0,34746.0,1.43453417]
[1625557253426,6.71504158,34747.0,34746.0,0.75226699]
[1625557255082,6.71504158,34747.0,34746.0,1.43458535]
[1625557255180,6.47005158,34747.0,34746.0,1.43458535]
[1625557257941,6.47005158,34747.0,34746.0,0.75226699]
[1625557263303,6.47005158,34747.0,34746.0,1.43463051]
[1625557264500,6.47005158,34747.0,34746.0,1.19405507]
[1625557265152,6.47005158,34747.0,34746.0,0.51169155]
[1625557266008,6.47005158,34747.0,34746.0,1.19406882]
[1625557268210,6.47005158,34747.0,34746.0,0.51169155]
[1625557269062,6.81578158,34747.0,34746.0,0.51169155]
[1625557270766,6.47005158,34747.0,34746.0,0.85516155]
[1625557271167,6.47005158,34747.0,34746.0,2.56102763]
[1625557271417,6.47005158,34747.0,34746.0,2.56444363]
[1625557271666,6.43588454,34747.0,34746.0,2.56444363]
[1625557271967,6.43588454,34747.0,34746.0,3.75850558]
[1625557272468,6.47004411,34747.0,34746.0,3.75850558]
[1625557272568,6.47004411,34747.0,34746.0,3.75508958]
[1625557272718,6.47004411,34747.0,34746.0,3.75850552]
[1625557272819,6.47004411,34747.0,34746.0,2.56444357]
[1625557273019,6.47004411,34747.0,34746.0,2.56102763]
[1625557274022,6.47004411,34747.0,34746.0,1.53750798]
[1625557275524,6.47004411,34747.0,34746.0,1.19403798]
[1625557275825,6.47004411,34747.0,34746.0,2.21738497]
[1625557278130,6.47004411,34747.0,34746.0,1.19403798]
[1625557278633,6.47004411,34747.0,34746.0,2.21739309]
[1625557279035,6.47004411,34747.0,34746.0,1.19403798]
[1625557280738,6.41104411,34747.0,34746.0,1.46661798]
[1625557281148,6.37688454,34747.0,34746.0,2.49331447]
[1625557281740,6.43588454,34747.0,34746.0,2.49331447]
[1625557282039,6.43588454,34747.0,34746.0,3.68706874]
[1625557283796,6.43588454,34747.0,34746.0,3.68365285]
[1625557284046,6.43588454,34747.0,34746.0,3.68706876]
[1625557285648,6.43588454,34747.0,34746.0,3.68365285]
[1625557285950,6.76696482,34747.0,34746.0,3.41107285]
[1625557286705,6.76696482,34747.0,34746.0,1.19403798]
[1625557290358,6.47004482,34747.0,34746.0,1.19403798]
[1625557294066,6.47004482,34747.0,34746.0,0.51169155]
[1625557295218,6.47004482,34747.0,34746.0,0.85303571]
[1625557295922,8.1761806,34747.0,34746.0,0.34134416]
[1625557296321,8.1761806,34747.0,34746.0,0.85332332]
[1625557297473,8.1761806,34747.0,34746.0,1.19460838]
[1625557297573,6.47004482,34747.0,34746.0,1.19460838]
[1625557297672,6.43588454,34747.0,34746.0,1.19460838]
[1625557297922,6.43588454,34747.0,34746.0,2.21830872]
[1625557298022,6.47004336,34747.0,34746.0,2.21830872]
[1625557298373,6.47004336,34747.0,34746.0,1.19460838]
[1625557298672,6.47004336,34747.0,34746.0,2.21833782]
[1625557299275,6.43588454,34747.0,34746.0,2.21833782]
[1625557304987,6.37688454,34747.0,34746.0,2.21833782]
[1625557305086,6.37688454,34747.0,34746.0,2.30493782]
[1625557305187,6.37688454,34747.0,34746.0,2.22175329]
[1625557305641,6.37688454,34747.0,34746.0,2.46232873]
[1625557305751,4.78507477,34747.0,34746.0,5.0208678]
[1625557306255,3.42248882,34747.0,34746.0,5.0208678]
[1625557307399,3.42248882,34747.0,34746.0,5.0922678]
[1625557308449,3.42248882,34747.0,34746.0,5.1781678]
[1625557308548,3.42248882,34747.0,34746.0,5.2371678]
[1625557308650,2.96388882,34747.0,34746.0,5.2371678]
[1625557308749,2.21443634,34747.0,34746.0,6.77040391]
[1625557309049,0.51178144,34747.0,34746.0,6.77040391]
[1625557309355,0.51161096,34748.0,34746.0,6.77040391]
[1625557309356,0.59669703,34748.0,34746.0,6.77040391]
[1625557309653,0.59669703,34748.0,34747.0,0.48115088]
[1625557309851,0.59669703,34748.0,34747.0,0.48456554]
[1625557310001,0.59669703,34748.0,34747.0,5.58474982]
[1625557310101,0.59669703,34748.0,34747.0,5.64374982]
[1625557310558,0.25584897,34748.0,34747.0,5.64374982]
[1625557311604,0.59649629,34748.0,34747.0,5.64374982]
[1625557312357,0.59649629,34748.0,34747.0,5.71514982]
[1625557312455,0.25584897,34748.0,34747.0,5.71514982]
[1625557312807,0.59649449,34748.0,34747.0,5.71514982]
[1625557313608,0.08533977,34748.0,34747.0,5.71514982]
[1625557313909,0.08533977,34748.0,34747.0,5.71173516]
[1625557314109,0.25569166,34748.0,34747.0,5.71173516]
[1625557314409,0.51087702,34748.0,34747.0,4.18167988]
[1625557314711,0.85123082,34748.0,34747.0,4.18167988]
[1625557315567,0.51083948,34748.0,34747.0,4.18167988]
[1625557318021,0.59606438,34748.0,34747.0,4.18167988]
[1625557319623,0.25553925,34748.0,34747.0,4.18167988]
[1625557321176,0.0852249,34748.0,34747.0,4.18167988]
[1625557322533,0.59576029,34749.0,34747.0,4.18167988]
[1625557322931,0.59576029,34749.0,34748.0,3.55938465]
[1625557323131,0.59576029,34749.0,34748.0,3.61838465]
[1625557323487,0.25543487,34749.0,34748.0,3.61838465]
[1625557324238,0.25543487,34749.0,34748.0,3.62179935]
[1625557324335,0.25539282,34750.0,34748.0,3.62179935]
[1625557324687,0.25539282,34750.0,34749.0,3.55799122]
[1625557324789,0.25539282,34750.0,34749.0,3.61699122]
[1625557325589,0.25539282,34750.0,34749.0,3.62040592]
[1625557325689,0.08518762,34750.0,34749.0,3.62040592]
[1625557325790,0.08518762,34750.0,34749.0,3.86098136]
[1625557325890,0.08518762,34750.0,34749.0,3.85756666]
[1625557326441,0.25536073,34750.0,34749.0,3.85756666]
[1625557326942,0.08518762,34750.0,34749.0,3.85756666]
[1625557327441,0.51039125,34751.0,34749.0,3.86098131]
[1625557327442,0.59554785,34751.0,34749.0,3.86098131]
[1625557327694,0.59554785,34751.0,34749.0,3.85756666]
[1625557327792,0.25530748,34751.0,34750.0,3.55852315]
[1625557327892,0.25530748,34751.0,34750.0,3.61752315]
[1625557327995,0.25530748,34751.0,34750.0,3.62093775]
[1625557328147,0.0851566,34751.0,34750.0,3.62093775]
[1625557328949,0.0851566,34751.0,34750.0,4.8070072]
[1625557329398,0.59539812,34752.0,34750.0,4.8070072]
[1625557329799,0.59539812,34752.0,34751.0,4.23919192]
[1625557329899,0.59539812,34752.0,34751.0,4.8064852]
[1625557332705,0.25528399,34752.0,34751.0,4.8064852]
[1625557333507,0.27099589,34752.0,34751.0,4.8064852]
[1625557334009,0.32999589,34752.0,34751.0,4.8064852]
[1625557334408,0.32999589,34752.0,34751.0,3.45103645]
[1625557335109,0.27099589,34752.0,34751.0,3.45103645]
[1625557335610,0.27099589,34752.0,34751.0,3.39203645]
[1625557335712,0.52554291,34752.0,34751.0,3.39203645]
[1625557335913,0.76611835,34752.0,34751.0,3.39203645]
[1625557336114,2.46541523,34752.0,34751.0,2.20601879]
[1625557341677,2.46541523,34752.0,34751.0,1.18943223]
[1625557342126,2.52441523,34752.0,34751.0,1.18943223]
[1625557342627,2.52441523,34752.0,34751.0,1.45449223]
[1625557342927,2.52441523,34752.0,34751.0,2.47234539]
[1625557343380,2.52441523,34752.0,34751.0,1.45449223]
[1625557343627,2.52441523,34752.0,34751.0,1.18943223]
[1625557343730,3.71411954,34752.0,34751.0,1.18943223]
[1625557344029,3.71411954,34752.0,34751.0,0.51170786]
[1625557344330,3.77311954,34752.0,34751.0,0.51170786]
[1625557344429,4.12186954,34752.0,34751.0,0.50829328]
[1625557345232,5.48179219,34752.0,34750.0,0.001]
[1625557345482,0.01571535,34751.0,34750.0,0.001]
[1625557345583,4.89369263,34751.0,34750.0,0.001]
[1625557346033,5.13426807,34751.0,34750.0,0.001]
[1625557347938,6.66438925,34751.0,34750.0,0.001]
[1625557349843,6.60538925,34751.0,34750.0,0.001]
[1625557349943,5.07526807,34751.0,34750.0,0.001]
[1625557350544,5.13426807,34751.0,34750.0,0.001]
[1625557350645,5.07526807,34751.0,34750.0,0.26037]
[1625557350844,4.83469263,34751.0,34750.0,0.26037]
[1625557350947,4.83469263,34751.0,34750.0,0.34521447]
[1625557351248,2.28482014,34751.0,34750.0,2.46376863]
[1625557352097,2.28482014,34751.0,34750.0,2.94491951]
[1625557352651,2.26910479,34751.0,34750.0,3.00733443]
[1625557352904,0.31436902,34751.0,34750.0,5.54588894]
[1625557353303,0.29056902,34751.0,34750.0,5.54588894]
[1625557353404,0.12037968,34751.0,34750.0,5.54588894]
[1625557353806,0.0352,34751.0,34750.0,5.54588894]
[1625557354304,0.25540888,34752.0,34750.0,5.54588894]
[1625557354508,0.16060888,34752.0,34750.0,5.54588894]
[1625557354608,0.08518422,34753.0,34751.0,4.73494666]
[1625557354710,0.08518422,34753.0,34751.0,4.79394666]
[1625557354804,0.08518422,34753.0,34751.0,4.85636096]
[1625557355057,0.08518422,34753.0,34752.0,0.0034143]
[1625557355158,0.08617438,34757.0,34752.0,6.31170113]
[1625557355259,0.08617438,34757.0,34752.0,6.37070113]
[1625557355506,0.42645308,34757.0,34756.0,4.72999764]
[1625557355606,0.42645308,34757.0,34756.0,4.78899764]
[1625557355706,0.42645308,34757.0,34756.0,4.84799764]
[1625557355909,0.42645308,34757.0,34756.0,4.85141192]
[1625557356106,0.42645308,34757.0,34756.0,5.09198736]
[1625557356460,0.42645308,34757.0,34756.0,5.03298736]
[1625557357310,0.42645308,34757.0,34756.0,5.09198736]
[1625557357408,0.42645308,34757.0,34756.0,5.03298736]
[1625557357660,0.3412787,34757.0,34756.0,5.03298736]
[1625557357758,0.3412787,34757.0,34756.0,5.02957308]
[1625557357960,0.3412787,34757.0,34756.0,5.08857308]
[1625557358060,0.3412787,34757.0,34756.0,5.02957308]
[1625557358158,0.3412787,34757.0,34756.0,5.08857308]
[1625557358262,0.3412787,34757.0,34756.0,5.03298716]
[1625557358360,0.3412787,34757.0,34756.0,5.09198716]
[1625557358459,0.3412787,34757.0,34756.0,5.03298716]
[1625557358660,0.42645016,34757.0,34756.0,5.03298716]
[1625557358760,0.42645016,34757.0,34756.0,5.02957308]
[1625557359311,0.42545016,34757.0,34756.0,5.02957308]
[1625557359414,0.3402787,34757.0,34756.0,5.02957308]
[1625557360316,0.3402787,34757.0,34756.0,5.08857308]
[1625557360412,0.3402787,34757.0,34756.0,5.02957308]
[1625557361064,0.42545249,34757.0,34756.0,5.02957308]
[1625557361266,0.42545249,34757.0,34756.0,5.08857308]
[1625557361365,0.42545249,34757.0,34756.0,5.02957308]